bitfinex/quotes_SOLUSD_20230113
["timestamp","ask_amount","ask_price","bid_price","bid_amount"]
[1673653679869,63.32955,18.229,18.211,114.9684]
[1673653680706,115.23375767,18.229,18.211,114.9684]
[1673653681765,78.23375767,18.229,18.211,114.9684]
[1673653682183,78.23375767,18.229,18.201,20.0]
[1673653682496,78.23375767,18.229,18.2,135.7838]
[1673653682497,20.0,18.227,18.203,20.0]
[1673653683036,20.0,18.227,18.203,48.06996541]
[1673653683263,20.0,18.227,18.204,20.0]
[1673653683563,20.0,18.227,18.205,20.0]
[1673653683787,20.0,18.227,18.206,20.0]
[1673653684405,113.9341,18.228,18.206,20.0]
[1673653684617,133.9341,18.228,18.206,20.0]
[1673653684826,113.9341,18.228,18.206,20.0]
[1673653685225,165.83830767,18.228,18.206,20.0]
[1673653685674,165.83830767,18.228,18.203,20.0]
[1673653685675,20.0,18.227,18.205,20.0]
[1673653685978,20.0,18.227,18.206,20.0]
[1673653686715,20.0,18.227,18.204,20.0]
[1673653686903,71.90420767,18.227,18.204,20.0]
[1673653688093,71.90420767,18.227,18.203,40.0]
[1673653688832,71.90420767,18.227,18.203,20.0]
[1673653691129,51.90420767,18.227,18.203,20.0]
[1673653691557,51.90420767,18.227,18.204,20.0]
[1673653693040,71.90420767,18.227,18.203,20.0]
[1673653693433,20.0,18.226,18.203,20.0]
[1673653693641,20.0,18.226,18.203,17.5]
[1673653696395,68.90334101,18.225,18.203,17.5]
[1673653696591,20.0,18.224,18.203,17.5]
[1673653697438,71.90334101,18.224,18.203,17.5]
[1673653698820,17.0,18.223,18.203,17.5]
[1673653699034,6.32955,18.222,18.203,17.5]
[1673653699241,37.0,18.221,18.203,17.5]
[1673653699459,20.0,18.219,18.203,17.5]
[1673653699967,20.0,18.219,18.202,111.6807]
[1673653700177,20.0,18.218,18.202,111.6807]
[1673653700808,20.0,18.217,18.202,111.6807]
[1673653701659,71.90334101,18.218,18.202,111.6807]
[1673653702590,20.0,18.218,18.202,111.6807]
[1673653704588,20.0,18.219,18.202,111.6807]
[1673653705562,111.8172,18.22,18.203,20.0]
[1673653705960,111.8172,18.22,18.202,111.6807]
[1673653706171,20.0,18.219,18.202,111.6807]
[1673653706398,20.0,18.218,18.202,111.6807]
[1673653710384,40.0,18.219,18.202,111.6807]
[1673653710583,20.0,18.219,18.202,111.6807]
[1673653712405,20.0,18.218,18.202,111.6807]
[1673653713001,40.0,18.219,18.202,111.6807]
[1673653713212,111.8172,18.22,18.203,20.0]
[1673653713443,111.8172,18.22,18.204,20.0]
[1673653713646,111.8172,18.22,18.205,20.0]
[1673653714804,111.8172,18.22,18.203,20.0]
[1673653714805,111.8172,18.22,18.204,20.0]
[1673653715120,184.8,18.238,18.204,20.0]
[1673653715121,20.0,18.238,18.21,27.39]
[1673653715327,139.3954,18.24,18.212,20.0]
[1673653715738,139.3954,18.24,18.22,27.39]
[1673653715739,112.0054,18.24,18.22,27.39]
[1673653715945,112.0054,18.24,18.221,20.0]
[1673653716156,112.0054,18.24,18.222,20.0]
[1673653716370,112.0054,18.24,18.223,20.0]
[1673653716795,112.0054,18.24,18.224,48.09565242]
[1673653717041,112.0054,18.24,18.225,20.0]
[1673653717218,112.0054,18.24,18.226,20.0]
[1673653717643,139.7583,18.25,18.226,20.0]
[1673653717962,169.7274928,18.25,18.226,20.0]
[1673653718171,20.0,18.249,18.226,20.0]
[1673653718488,20.0,18.249,18.224,20.0]
[1673653718489,40.0,18.249,18.224,20.0]
[1673653719098,40.0,18.249,18.225,20.0]
[1673653719308,40.0,18.249,18.226,20.0]
[1673653720360,40.0,18.249,18.225,20.0]
[1673653721011,40.0,18.249,18.225,48.09565242]
[1673653721234,65.12429543,18.249,18.225,20.0]
[1673653721435,23.32955,18.248,18.223,20.0]
[1673653721642,6.32955,18.247,18.223,20.0]
[1673653722071,20.0,18.246,18.223,20.0]
[1673653724487,20.0,18.246,18.224,28.09565242]
[1673653724707,40.0,18.249,18.225,20.0]
[1673653724889,20.0,18.249,18.225,20.0]
[1673653725100,112.4783,18.25,18.23,27.39]
[1673653725324,112.4783,18.25,18.231,149.3104]
[1673653725654,112.4783,18.25,18.231,177.40605242]
[1673653725844,112.4783,18.25,18.232,28.09565242]
[1673653726056,112.4783,18.25,18.233,20.0]
[1673653726268,112.4783,18.25,18.234,20.0]
[1673653726482,112.4783,18.25,18.234,28.09565242]
[1673653726696,112.4783,18.25,18.235,20.0]
[1673653727013,112.4783,18.25,18.235,48.09565242]
[1673653727432,112.4783,18.25,18.235,20.0]
[1673653727646,20.0,18.249,18.235,20.0]
[1673653727847,20.0,18.249,18.232,20.0]
[1673653728059,40.0,18.249,18.231,109.3104]
[1673653728259,20.0,18.248,18.231,109.3104]
[1673653728470,20.0,18.247,18.231,109.3104]
[1673653729540,20.0,18.245,18.224,392.3]
[1673653729739,20.0,18.245,18.228,114.6719]
[1673653730145,38.62552761,18.247,18.228,114.6719]
[1673653730369,20.0,18.248,18.228,114.6719]
[1673653732158,20.0,18.247,18.228,114.6719]
[1673653732567,20.0,18.247,18.224,392.3]
[1673653732784,23.32955,18.246,18.225,20.0]
[1673653733014,6.32955,18.245,18.225,20.0]
[1673653733205,37.0,18.244,18.225,20.0]
[1673653733405,6.32955,18.243,18.221,119.3962]
[1673653733616,27.28,18.24,18.21,142.4486]
[1673653733843,27.28,18.24,18.211,109.7545]
[1673653733844,43.32955,18.239,18.211,109.7545]
[1673653734048,20.0,18.238,18.211,137.85015242]
[1673653734264,37.0,18.237,18.212,28.09565242]
[1673653734477,146.0923,18.237,18.212,28.09565242]
[1673653734676,20.0,18.236,18.212,28.09565242]
[1673653734883,17.0,18.235,18.212,28.09565242]
[1673653735091,20.0,18.234,18.212,28.09565242]
[1673653736565,20.0,18.234,18.211,109.7545]
[1673653736566,20.0,18.234,18.213,20.0]
[1673653736794,20.0,18.234,18.212,20.0]
[1673653737202,20.0,18.232,18.212,20.0]
[1673653739111,20.0,18.236,18.212,20.0]
[1673653739319,149.0923,18.237,18.213,28.09565242]
[1673653739504,129.0923,18.237,18.214,40.0]
[1673653740264,129.0923,18.237,18.214,20.0]
[1673653740448,20.0,18.236,18.212,48.09565242]
[1673653741527,20.0,18.237,18.22,27.39]
[1673653741727,20.0,18.238,18.22,27.39]
[1673653741938,40.0,18.239,18.22,27.39]
[1673653742146,20.0,18.239,18.22,27.39]
[1673653742775,118.1793,18.24,18.221,20.0]
[1673653742982,118.1793,18.24,18.223,20.0]
[1673653743201,118.1793,18.24,18.224,20.0]
[1673653744459,118.1793,18.24,18.223,20.0]
[1673653744460,164.8,18.262,18.223,20.0]
[1673653744673,20.0,18.248,18.231,20.0]
[1673653744888,20.0,18.247,18.23,27.39]
[1673653745103,20.0,18.246,18.23,27.39]
[1673653745709,20.0,18.246,18.223,20.0]
[1673653745934,20.0,18.244,18.223,20.0]
[1673653747209,20.0,18.243,18.222,114.6574]
[1673653747408,17.0,18.242,18.222,114.6574]
[1673653747618,40.0,18.241,18.222,114.6574]
[1673653747830,141.81193786,18.241,18.222,114.6574]
[1673653748027,121.81193786,18.241,18.222,114.6574]
[1673653748238,20.0,18.241,18.222,114.6574]
[1673653749090,20.0,18.244,18.223,20.0]
[1673653752656,20.0,18.242,18.223,20.0]
[1673653756758,20.0,18.24,18.223,20.0]
[1673653757192,20.0,18.242,18.223,20.0]
[1673653757388,149.22798412,18.251,18.223,20.0]
[1673653757608,115.9397,18.251,18.223,20.0]
[1673653757816,20.0,18.247,18.223,20.0]
[1673653758235,20.0,18.247,18.224,48.09565242]
[1673653758443,20.0,18.248,18.225,20.0]
[1673653759280,20.0,18.247,18.225,20.0]
[1673653759818,20.0,18.247,18.223,20.0]
[1673653760232,49.9691928,18.247,18.223,20.0]
[1673653760878,20.0,18.247,18.223,20.0]
[1673653761307,45.12429543,18.247,18.223,20.0]
[1673653761917,17.0,18.246,18.223,20.0]
[1673653762147,20.0,18.245,18.223,20.0]
[1673653763693,49.9691928,18.245,18.223,20.0]
[1673653764238,20.0,18.245,18.223,20.0]
[1673653765583,49.9691928,18.245,18.223,20.0]
[1673653765801,20.0,18.243,18.223,20.0]
[1673653766879,49.9691928,18.245,18.223,20.0]
[1673653767708,29.9691928,18.245,18.223,20.0]
[1673653767915,20.0,18.247,18.223,20.0]
[1673653768336,29.9691928,18.246,18.223,20.0]
[1673653768561,20.0,18.248,18.23,27.39]
[1673653768769,20.0,18.247,18.23,27.39]
[1673653769291,112.4783,18.25,18.23,27.39]
[1673653769485,112.4783,18.25,18.231,132.4907]
[1673653769700,112.4783,18.25,18.232,20.0]
[1673653769909,112.4783,18.25,18.233,20.0]
[1673653770329,112.4783,18.25,18.234,20.0]
[1673653770543,20.0,18.266,18.235,20.0]
[1673653770978,29.9691928,18.264,18.235,20.0]
[1673653771604,113.1757,18.263,18.235,20.0]
[1673653771818,20.0,18.259,18.235,20.0]
[1673653772032,20.0,18.257,18.235,20.0]
[1673653773421,20.0,18.258,18.234,20.0]
[1673653773589,20.0,18.258,18.235,20.0]
[1673653774645,25.12429543,18.257,18.235,20.0]
[1673653774862,20.0,18.256,18.235,20.0]
[1673653775071,20.0,18.256,18.233,20.0]
[1673653775271,20.0,18.256,18.234,20.0]
[1673653775479,20.0,18.256,18.235,20.0]
[1673653776117,29.9691928,18.257,18.235,20.0]
[1673653776843,20.0,18.258,18.235,20.0]
[1673653777274,20.0,18.258,18.233,20.0]
[1673653777599,20.0,18.256,18.233,20.0]
[1673653778227,29.9691928,18.257,18.233,20.0]
[1673653779389,20.0,18.258,18.233,20.0]
[1673653779705,20.0,18.256,18.233,20.0]
[1673653780335,29.9691928,18.255,18.233,20.0]
[1673653780652,20.0,18.254,18.233,20.0]
[1673653780858,20.0,18.254,18.232,20.0]
[1673653781077,25.12429543,18.253,18.232,20.0]
[1673653781603,25.12429543,18.253,18.233,20.0]
[1673653782342,25.12429543,18.253,18.232,40.0]
[1673653783375,25.12429543,18.253,18.232,20.0]
[1673653783793,109.2202,18.254,18.232,20.0]
[1673653784217,20.0,18.259,18.232,20.0]
[1673653784426,20.0,18.259,18.233,20.0]
[1673653785073,40.0,18.259,18.233,20.0]
[1673653785278,20.0,18.259,18.233,20.0]
[1673653785481,20.0,18.257,18.233,20.0]
[1673653785693,20.0,18.259,18.233,20.0]
[1673653785899,20.0,18.258,18.233,20.0]
[1673653786117,49.9691928,18.259,18.233,20.0]
[1673653786433,49.9691928,18.259,18.24,27.39]
[1673653787271,20.0,18.259,18.24,27.39]
[1673653787478,215.3691,18.26,18.24,27.39]
[1673653787806,215.3691,18.26,18.242,20.0]
[1673653787999,215.3691,18.26,18.244,20.0]
[1673653788209,215.3691,18.26,18.245,20.0]
[1673653788858,215.3691,18.26,18.243,20.0]
[1673653789377,49.9691928,18.259,18.241,118.1166]
[1673653789573,20.0,18.258,18.241,118.1166]
[1673653789777,20.0,18.257,18.241,118.1166]
[1673653791251,20.0,18.258,18.241,118.1166]
[1673653791587,20.0,18.257,18.241,118.1166]
[1673653791802,20.0,18.259,18.241,118.1166]
[1673653793261,25.12429543,18.266,18.25,27.39]
[1673653793681,20.0,18.269,18.25,27.39]
[1673653794000,20.0,18.267,18.243,20.0]
[1673653794313,45.12429543,18.267,18.243,20.0]
[1673653794728,25.12429543,18.267,18.243,20.0]
[1673653795684,25.12429543,18.267,18.244,44.98438489]
[1673653796004,25.12429543,18.267,18.246,20.0]
[1673653796221,20.0,18.269,18.247,20.0]
[1673653796529,20.0,18.267,18.247,20.0]
[1673653797349,20.0,18.267,18.245,20.0]
[1673653797566,20.0,18.267,18.243,20.0]
[1673653797789,20.0,18.265,18.243,20.0]
[1673653798197,25.12429543,18.264,18.242,20.0]
[1673653798513,20.0,18.263,18.242,20.0]
[1673653799678,27.25,18.26,18.241,118.1166]
[1673653800001,37.0,18.259,18.23,142.8366]
[1673653800209,99.21387174,18.259,18.232,116.4482]
[1673653800524,20.0,18.257,18.232,116.4482]
[1673653800919,40.0,18.257,18.232,116.4482]
[1673653801134,20.0,18.255,18.232,116.4482]
[1673653801560,29.9691928,18.254,18.232,116.4482]
[1673653801779,29.9691928,18.254,18.226,20.0]
[1673653801780,27.28,18.25,18.22,137.4468]
[1673653801979,27.28,18.25,18.228,108.9916]
[1673653802200,20.0,18.249,18.228,108.9916]
[1673653802394,40.0,18.249,18.228,108.9916]
[1673653802597,69.9691928,18.249,18.228,108.9916]
[1673653802812,49.9691928,18.249,18.228,108.9916]
[1673653803023,20.0,18.249,18.23,27.39]
[1673653803349,112.6574,18.258,18.231,48.09565242]
[1673653803765,55.09348823,18.257,18.231,20.0]
[1673653803978,25.12429543,18.257,18.231,20.0]
[1673653804312,20.0,18.256,18.231,48.09565242]
[1673653804523,20.0,18.256,18.232,20.0]
[1673653804712,49.9691928,18.256,18.232,20.0]
[1673653806391,49.9691928,18.256,18.23,138.2523]
[1673653806615,26.32227,18.255,18.23,138.2523]
[1673653806940,138.48238944,18.254,18.23,110.8623]
[1673653807153,37.0,18.253,18.23,110.8623]
[1673653807338,20.0,18.252,18.23,110.8623]
[1673653807551,20.0,18.251,18.23,110.8623]
[1673653807872,20.0,18.25,18.23,110.8623]
[1673653808081,20.0,18.248,18.23,110.8623]
[1673653808291,20.0,18.247,18.23,110.8623]
[1673653809352,20.0,18.247,18.21,571.1851]
[1673653809353,89.28455374,18.246,18.21,571.1851]
[1673653809561,117.5608,18.245,18.221,129.7183]
[1673653809782,20.0,18.244,18.221,129.7183]
[1673653811536,147.5299928,18.245,18.222,20.0]
[1673653811857,45.12429543,18.244,18.223,20.0]
[1673653812593,45.12429543,18.244,18.222,20.0]
[1673653814072,25.12429543,18.244,18.223,20.0]
[1673653815452,25.12429543,18.244,18.222,20.0]
[1673653817762,45.12429543,18.244,18.222,20.0]
[1673653818800,42.31536094,18.243,18.222,20.0]
[1673653819010,46.1978357,18.244,18.223,20.0]
[1673653819222,117.5608,18.245,18.223,20.0]
[1673653820381,117.5608,18.245,18.223,48.09565242]
[1673653820704,117.5608,18.245,18.224,20.0]
[1673653823949,117.5608,18.245,18.224,48.09565242]
[1673653825856,67.43965637,18.249,18.224,48.09565242]
[1673653826169,115.4051,18.26,18.24,40.85]
[1673653826595,115.4051,18.26,18.241,28.09565242]
[1673653826780,115.4051,18.26,18.242,20.0]
[1673653826989,115.4051,18.26,18.243,20.0]
[1673653827205,115.4051,18.26,18.244,20.0]
[1673653827520,133.2873,18.27,18.244,48.09565242]
[1673653827731,110.1311,18.269,18.245,28.09565242]
[1673653827942,110.1311,18.269,18.246,20.0]
[1673653828165,40.0,18.268,18.247,20.0]
[1673653828365,40.0,18.268,18.248,20.0]
[1673653828577,110.1311,18.269,18.249,20.0]
[1673653828982,110.1311,18.269,18.248,137.2831]
[1673653829218,130.1311,18.269,18.248,137.2831]
[1673653829832,20.0,18.267,18.248,137.2831]
[1673653832052,20.0,18.267,18.244,28.09565242]
[1673653832268,41.02,18.26,18.24,116.0987]
[1673653832580,20.0,18.259,18.24,116.0987]
[1673653832778,20.0,18.258,18.24,116.0987]
[1673653833103,20.0,18.256,18.24,116.0987]
[1673653833316,20.0,18.256,18.231,132.2764]
[1673653833511,20.0,18.256,18.231,112.2764]
[1673653833721,15.0,18.258,18.233,20.0]
[1673653834033,20.0,18.257,18.235,20.0]
[1673653834242,20.0,18.257,18.236,20.0]
[1673653835195,20.0,18.257,18.233,47.30220822]
[1673653835620,20.0,18.257,18.234,20.0]
[1673653838063,40.0,18.258,18.234,20.0]
[1673653838272,40.0,18.258,18.233,20.0]
[1673653838460,40.0,18.258,18.234,20.0]
[1673653838675,40.0,18.258,18.235,27.30220822]
[1673653838891,40.0,18.258,18.237,20.0]
[1673653839323,40.0,18.258,18.235,27.30220822]
[1673653839516,40.0,18.258,18.236,20.0]
[1673653839727,20.0,18.258,18.236,20.0]
[1673653841098,40.0,18.258,18.236,20.0]
[1673653842157,20.0,18.258,18.236,20.0]
[1673653842894,40.0,18.258,18.236,20.0]
[1673653843530,20.0,18.258,18.236,20.0]
[1673653843841,40.0,18.258,18.236,20.0]
[1673653844246,20.0,18.258,18.236,20.0]
[1673653844992,20.0,18.258,18.236,47.30220822]
[1673653845522,20.0,18.258,18.236,20.0]
[1673653845731,20.0,18.258,18.236,27.30220822]
[1673653845934,20.0,18.258,18.237,20.0]
[1673653848149,20.0,18.258,18.237,47.30220822]
[1673653848335,20.0,18.258,18.237,27.30220822]
[1673653849332,40.0,18.258,18.237,27.30220822]
[1673653849726,20.0,18.258,18.237,27.30220822]
[1673653850562,40.0,18.258,18.237,27.30220822]
[1673653851837,40.0,18.258,18.236,20.0]
[1673653852046,20.0,18.258,18.237,20.0]
[1673653852249,20.0,18.258,18.236,27.30220822]
[1673653852462,20.0,18.257,18.237,47.30220822]
[1673653852672,20.0,18.257,18.234,20.0]
[1673653853193,20.0,18.255,18.234,20.0]
[1673653853413,20.0,18.255,18.232,20.0]
[1673653853608,29.9691928,18.254,18.232,20.0]
[1673653853824,20.0,18.253,18.232,20.0]
[1673653854245,41.02,18.25,18.231,112.2764]
[1673653854659,69.9691928,18.249,18.231,112.2764]
[1673653858141,40.0,18.249,18.22,153.4377]
[1673653858346,20.0,18.247,18.222,116.3528]
[1673653858553,20.0,18.247,18.223,20.0]
[1673653858782,20.0,18.247,18.224,20.0]
[1673653858783,25.12429543,18.246,18.224,20.0]
[1673653858979,20.0,18.245,18.225,20.0]
[1673653859938,20.0,18.245,18.224,20.0]
[1673653860126,29.9691928,18.244,18.224,20.0]
[1673653860336,20.0,18.245,18.224,20.0]
[1673653860668,20.0,18.245,18.223,20.0]
[1673653861500,45.12429543,18.245,18.223,20.0]
[1673653863291,41.09640963,18.245,18.224,27.30220822]
[1673653863505,20.0,18.244,18.225,20.0]
[1673653863831,20.0,18.244,18.223,20.0]
[1673653864021,41.09640963,18.245,18.223,20.0]
[1673653864229,20.0,18.247,18.224,27.30220822]
[1673653864442,20.0,18.247,18.226,20.0]
[1673653864762,20.0,18.247,18.227,20.0]
[1673653864976,41.18956683,18.247,18.23,40.99]
[1673653865189,134.4828,18.257,18.231,20.0]
[1673653865375,134.4828,18.257,18.231,161.94800822]
[1673653866240,164.4519928,18.257,18.231,161.94800822]
[1673653866451,164.4519928,18.257,18.232,20.0]
[1673653866652,134.4828,18.257,18.233,20.0]
[1673653866864,134.4828,18.257,18.233,47.30220822]
[1673653867070,114.4828,18.257,18.234,20.0]
[1673653867282,20.0,18.256,18.236,20.0]
[1673653867501,20.0,18.256,18.237,20.0]
[1673653867821,20.0,18.256,18.235,20.0]
[1673653868344,20.0,18.256,18.234,20.0]
[1673653868552,20.0,18.256,18.235,20.0]
[1673653869274,20.0,18.256,18.233,20.0]
[1673653869914,139.60709543,18.257,18.233,20.0]
[1673653870654,114.4828,18.257,18.233,20.0]
[1673653871096,119.0638,18.26,18.24,27.3]
[1673653871298,20.0,18.259,18.24,27.3]
[1673653871896,40.0,18.259,18.24,27.3]
[1673653872326,20.0,18.259,18.24,27.3]
[1673653873069,40.0,18.259,18.24,27.3]
[1673653873606,20.0,18.258,18.24,27.3]
[1673653873912,20.0,18.258,18.233,20.0]
[1673653875781,157.9778,18.259,18.233,20.0]
[1673653876640,20.0,18.258,18.232,20.0]
[1673653880851,137.9778,18.259,18.232,65.90568889]
[1673653881160,137.9778,18.259,18.24,27.07]
[1673653881356,20.0,18.259,18.24,27.07]
[1673653882511,20.0,18.258,18.24,27.07]
[1673653883772,40.0,18.259,18.24,27.07]
[1673653884526,20.0,18.259,18.24,27.07]
[1673653885456,119.0638,18.26,18.24,27.07]
[1673653885662,119.0638,18.26,18.242,20.0]
[1673653885890,119.0638,18.26,18.243,20.0]
[1673653886515,119.0638,18.26,18.242,20.0]
[1673653887153,119.0638,18.26,18.243,20.0]
[1673653887360,119.0638,18.26,18.242,20.0]
[1673653888519,119.0638,18.26,18.243,20.0]
[1673653888924,108.7055,18.265,18.243,20.0]
[1673653891358,20.0,18.269,18.243,20.0]
[1673653891573,20.0,18.268,18.243,20.0]
[1673653891775,20.0,18.268,18.251,20.0]
[1673653891983,20.0,18.276,18.251,20.0]
[1673653892317,20.0,18.277,18.253,20.0]
[1673653892521,20.0,18.277,18.254,20.0]
[1673653892728,20.0,18.277,18.255,20.0]
[1673653892947,20.0,18.277,18.256,20.0]
[1673653893349,20.0,18.277,18.254,20.0]
[1673653893889,95.90602806,18.278,18.254,20.0]
[1673653895027,40.51096683,18.278,18.254,20.0]
[1673653895237,20.0,18.277,18.254,20.0]
[1673653895761,20.0,18.277,18.253,20.0]
[1673653895968,20.0,18.275,18.253,20.0]
[1673653896305,20.0,18.275,18.254,20.0]
[1673653896628,40.51096683,18.276,18.254,20.0]
[1673653897656,97.3109,18.28,18.26,27.3]
[1673653897867,97.3109,18.28,18.261,111.7968]
[1673653898084,124.6109,18.28,18.261,111.7968]
[1673653898306,49.30724687,18.279,18.261,111.7968]
[1673653898518,69.30724687,18.279,18.261,111.7968]
[1673653899036,49.30724687,18.278,18.261,111.7968]
[1673653899258,20.0,18.277,18.261,111.7968]
[1673653900082,20.0,18.279,18.261,111.7968]
[1673653900290,20.0,18.278,18.261,111.7968]
[1673653900504,20.0,18.277,18.261,111.7968]
[1673653901361,20.0,18.278,18.261,111.7968]
[1673653903464,20.0,18.279,18.261,111.7968]
[1673653903787,20.0,18.278,18.261,111.7968]
[1673653904187,69.9691928,18.279,18.261,111.7968]
[1673653904712,20.0,18.278,18.261,111.7968]
[1673653905553,45.12429543,18.278,18.261,111.7968]
[1673653906417,25.12429543,18.278,18.261,111.7968]
[1673653907238,20.0,18.277,18.261,111.7968]
[1673653907661,29.9691928,18.276,18.261,111.7968]
[1673653907881,20.0,18.275,18.261,111.7968]
[1673653908089,20.0,18.275,18.253,20.0]
[1673653908310,27.3,18.27,18.251,114.9421]
[1673653908635,20.0,18.269,18.251,114.9421]
[1673653908817,56.2914628,18.269,18.24,142.3477]
[1673653909036,56.2914628,18.269,18.241,113.207]
[1673653909037,150.42879543,18.268,18.241,113.207]
[1673653909238,20.0,18.267,18.241,113.207]
[1673653909564,49.9691928,18.267,18.241,113.207]
[1673653909785,25.12429543,18.266,18.241,113.207]
[1673653909993,20.0,18.265,18.243,20.0]
[1673653910192,68.18924687,18.265,18.243,20.0]
[1673653910509,20.0,18.265,18.243,20.0]
[1673653910738,68.18924687,18.265,18.243,20.0]
[1673653910918,20.0,18.265,18.243,20.0]
[1673653911247,25.12429543,18.266,18.242,27.30220822]
[1673653911564,25.12429543,18.266,18.243,20.0]
[1673653911769,128.3045,18.268,18.244,20.0]
[1673653911968,128.3045,18.268,18.245,20.0]
[1673653912179,108.3045,18.268,18.247,20.0]
[1673653912398,20.0,18.267,18.246,20.0]
[1673653912831,20.0,18.267,18.244,20.0]
[1673653913555,153.42879543,18.268,18.244,20.0]
[1673653913871,108.3045,18.268,18.244,47.30220822]
[1673653914101,108.3045,18.268,18.245,20.0]
[1673653914292,108.3045,18.268,18.246,20.0]
[1673653914502,108.3045,18.268,18.247,20.0]
[1673653914833,20.0,18.267,18.246,20.0]
[1673653915352,20.0,18.267,18.245,20.0]
[1673653915769,20.0,18.269,18.246,27.30220822]
[1673653915981,20.0,18.269,18.247,20.0]
[1673653916301,20.0,18.269,18.25,27.12]
[1673653919763,20.0,18.268,18.25,27.12]
[1673653919952,20.0,18.268,18.249,112.4609]
[1673653920589,49.9691928,18.268,18.249,112.4609]
[1673653922085,48.18924687,18.267,18.249,112.4609]
[1673653922284,48.18924687,18.267,18.24,142.3477]
[1673653922613,49.9691928,18.266,18.241,129.4981]
[1673653922809,161.2676928,18.266,18.241,129.4981]
[1673653923022,20.0,18.264,18.241,129.4981]
[1673653923429,29.9691928,18.263,18.241,129.4981]
[1673653923657,20.0,18.262,18.241,129.4981]
[1673653924090,48.18924687,18.261,18.241,129.4981]
[1673653924300,20.0,18.26,18.241,129.4981]
[1673653924623,20.0,18.262,18.241,129.4981]
[1673653926624,20.0,18.264,18.241,129.4981]
[1673653927357,29.9691928,18.263,18.241,109.4981]
[1673653927578,20.0,18.259,18.241,109.4981]
[1673653927792,20.0,18.258,18.241,109.4981]
[1673653928007,20.0,18.257,18.241,109.4981]
[1673653928219,49.9691928,18.257,18.241,109.4981]
[1673653928542,98.15843967,18.257,18.241,109.4981]
[1673653928759,20.0,18.257,18.241,109.4981]
[1673653928945,29.9691928,18.256,18.23,138.4326]
[1673653929154,20.0,18.255,18.232,20.0]
[1673653929366,20.0,18.255,18.231,112.6711]
[1673653929582,29.9691928,18.254,18.231,112.6711]
[1673653929794,20.0,18.253,18.231,112.6711]
[1673653930101,20.0,18.255,18.231,139.93937419]
[1673653930102,20.0,18.252,18.231,139.93937419]
[1673653930544,20.0,18.252,18.231,112.6711]
[1673653930740,20.0,18.25,18.231,112.6711]
[1673653930947,20.0,18.249,18.231,112.6711]
[1673653932885,20.0,18.25,18.231,112.6711]
[1673653933041,20.0,18.248,18.231,112.6711]
[1673653933255,20.0,18.247,18.231,112.6711]